[Event "*** Titled Tuesday Blitz"]
[Site "Chess.com"]
[Date "2020.10.20"]
[Round "4"]
[White "PavelShkapenko"]
[Black "MITerryble"]
[Result "1/2-1/2"]
[WhiteElo "2705"]
[BlackElo "2890"]
[TimeControl "180+1"]
[EndTime "10:40:56 PDT"]
[Termination "Game drawn by repetition"]

1. e4 {[%clk 0:03:00.9]} 1... e6 {[%clk 0:02:59.5]} 2. d4 {[%clk 0:03:00.8]}
2... d5 {[%clk 0:03:00]} 3. exd5 {[%clk 0:03:01.7]} 3... exd5 {[%clk 0:03:00.3]}
4. Nf3 {[%clk 0:03:02.6]} 4... Nc6 {[%clk 0:03:00.5]} 5. h3 {[%clk 0:03:02.7]}
5... Bd6 {[%clk 0:03:00.8]} 6. c4 {[%clk 0:03:03]} 6... Nf6 {[%clk 0:02:52.1]}
7. c5 {[%clk 0:02:55]} 7... Be7 {[%clk 0:02:52]} 8. Bb5 {[%clk 0:02:55.6]} 8...
O-O {[%clk 0:02:51.9]} 9. Bxc6 {[%clk 0:02:53.9]} 9... bxc6 {[%clk 0:02:52.8]}
10. O-O {[%clk 0:02:54.2]} 10... Nd7 {[%clk 0:02:19]} 11. Qa4 {[%clk 0:02:49.8]}
11... Bb7 {[%clk 0:02:18.3]} 12. Re1 {[%clk 0:02:49.5]} 12... Bf6 {[%clk
0:02:15.6]} 13. Bf4 {[%clk 0:02:46.8]} 13... Re8 {[%clk 0:01:54.6]} 14. Nbd2
{[%clk 0:02:45.8]} 14... Rxe1+ {[%clk 0:01:18]} 15. Rxe1 {[%clk 0:02:44.9]}
15... Nf8 {[%clk 0:01:18.9]} 16. Be5 {[%clk 0:02:35.2]} 16... Be7 {[%clk
0:01:15.9]} 17. Nb3 {[%clk 0:02:33.9]} 17... Qd7 {[%clk 0:01:02.8]} 18. Na5
{[%clk 0:02:33]} 18... Rb8 {[%clk 0:01:03]} 19. Nxb7 {[%clk 0:02:11.3]} 19...
Rxb7 {[%clk 0:01:02.7]} 20. b3 {[%clk 0:02:11.8]} 20... Ne6 {[%clk 0:00:50.3]}
21. Qa6 {[%clk 0:02:02.4]} 21... Nd8 {[%clk 0:00:50]} 22. Bg3 {[%clk 0:01:47.8]}
22... f6 {[%clk 0:00:50.2]} 23. Re2 {[%clk 0:01:20.6]} 23... Bf8 {[%clk
0:00:48.5]} 24. Qd3 {[%clk 0:01:10.4]} 24... Rb8 {[%clk 0:00:45.1]} 25. Nd2
{[%clk 0:01:09.1]} 25... Ne6 {[%clk 0:00:43.1]} 26. Nf3 {[%clk 0:01:04.7]} 26...
Nd8 {[%clk 0:00:28.4]} 27. Bf4 {[%clk 0:00:59.2]} 27... Rb4 {[%clk 0:00:27.1]}
28. Bd2 {[%clk 0:00:58.7]} 28... Rb8 {[%clk 0:00:27.2]} 29. Qa6 {[%clk
0:00:55.7]} 29... Rb7 {[%clk 0:00:26.8]} 30. b4 {[%clk 0:00:55.7]} 30... Kf7
{[%clk 0:00:24.2]} 31. a4 {[%clk 0:00:49.9]} 31... Qf5 {[%clk 0:00:24.1]} 32. b5
{[%clk 0:00:29.1]} 32... Qd3 {[%clk 0:00:23.7]} 33. Re3 {[%clk 0:00:25]} 33...
Qb1+ {[%clk 0:00:23.8]} 34. Re1 {[%clk 0:00:24.3]} 34... Qd3 {[%clk 0:00:24]}
35. Re3 {[%clk 0:00:24.3]} 35... Qb1+ {[%clk 0:00:24.1]} 36. Re1 {[%clk
0:00:24.4]} 36... Qd3 {[%clk 0:00:24]} 37. Re3 {[%clk 0:00:24.1]} 1/2-1/2

[Event "*** Titled Tuesday Blitz"]
[Site "Chess.com"]
[Date "2020.10.20"]
[Round "4"]
[White "giantslayer83"]
[Black "MrChampion_Coach"]
[Result "1-0"]
[WhiteElo "2702"]
[BlackElo "2360"]
[TimeControl "180+1"]
[EndTime "10:40:56 PDT"]
[Termination "giantslayer83 won by checkmate"]

1. d4 {[%clk 0:03:00.9]} 1... Nf6 {[%clk 0:02:59.2]} 2. Bg5 {[%clk 0:03:00.2]}
2... e6 {[%clk 0:02:57.6]} 3. Nd2 {[%clk 0:02:58.8]} 3... d5 {[%clk 0:02:56.6]}
4. e3 {[%clk 0:02:55.6]} 4... c5 {[%clk 0:02:50.9]} 5. c3 {[%clk 0:02:55.4]}
5... Nc6 {[%clk 0:02:50.1]} 6. Ngf3 {[%clk 0:02:52.8]} 6... h6 {[%clk
0:02:33.8]} 7. Bh4 {[%clk 0:02:49.3]} 7... Be7 {[%clk 0:02:19.3]} 8. Bd3 {[%clk
0:02:48.9]} 8... Qb6 {[%clk 0:02:14.9]} 9. Rb1 {[%clk 0:02:45.4]} 9... O-O
{[%clk 0:02:09.9]} 10. O-O {[%clk 0:02:44.5]} 10... Re8 {[%clk 0:02:01.2]} 11.
Qe2 {[%clk 0:02:18.6]} 11... a6 {[%clk 0:01:53.4]} 12. dxc5 {[%clk 0:02:05.1]}
12... Qxc5 {[%clk 0:01:52.2]} 13. e4 {[%clk 0:02:05.5]} 13... Nh5 {[%clk
0:01:49.9]} 14. Bg3 {[%clk 0:01:56.9]} 14... Nxg3 {[%clk 0:01:43.5]} 15. hxg3
{[%clk 0:01:57.8]} 15... Bd7 {[%clk 0:01:36.5]} 16. Nb3 {[%clk 0:01:54.4]} 16...
Qb6 {[%clk 0:01:34]} 17. e5 {[%clk 0:01:52.3]} 17... Na5 {[%clk 0:01:25]} 18.
Nbd4 {[%clk 0:01:48.7]} 18... Bf8 {[%clk 0:01:03.4]} 19. g4 {[%clk 0:01:48.4]}
19... Qd8 {[%clk 0:00:50.1]} 20. g3 {[%clk 0:01:44.7]} 20... Nc6 {[%clk
0:00:32.6]} 21. Kg2 {[%clk 0:01:44.1]} 21... Nxd4 {[%clk 0:00:32.5]} 22. cxd4
{[%clk 0:01:44.4]} 22... Bb5 {[%clk 0:00:32.2]} 23. g5 {[%clk 0:01:38.4]} 23...
hxg5 {[%clk 0:00:19.4]} 24. Rh1 {[%clk 0:01:36.9]} 24... g6 {[%clk 0:00:19.4]}
25. Bxb5 {[%clk 0:01:28.3]} 25... axb5 {[%clk 0:00:20.3]} 26. Qe3 {[%clk
0:01:29.1]} 26... g4 {[%clk 0:00:17.3]} 27. Nh2 {[%clk 0:01:26.9]} 27... f5
{[%clk 0:00:15.2]} 28. exf6 {[%clk 0:01:26.3]} 28... Qxf6 {[%clk 0:00:15.3]} 29.
Nxg4 {[%clk 0:01:26.9]} 29... Qf5 {[%clk 0:00:10.6]} 30. Rh4 {[%clk 0:01:20]}
30... Qxb1 {[%clk 0:00:09.7]} 31. Nf6+ {[%clk 0:01:13.8]} 31... Kf7 {[%clk
0:00:09.3]} 32. Rh7+ {[%clk 0:01:13.6]} 32... Bg7 {[%clk 0:00:09.6]} 33. Qf4
{[%clk 0:00:48.1]} 33... Qf5 {[%clk 0:00:08.4]} 34. Qc7+ {[%clk 0:00:46.4]}
34... Re7 {[%clk 0:00:02.7]} 35. Rxg7+ {[%clk 0:00:45.9]} 35... Kxg7 {[%clk
0:00:03.6]} 36. Qxe7+ {[%clk 0:00:46.5]} 36... Kh6 {[%clk 0:00:02.2]} 37. Qh7+
{[%clk 0:00:46.7]} 37... Kg5 {[%clk 0:00:02.4]} 38. Qh4# {[%clk 0:00:47.6]} 1-0

[Event "*** Titled Tuesday Blitz"]
[Site "Chess.com"]
[Date "2020.10.20"]
[Round "4"]
[White "TigrVShlyape"]
[Black "Pultis"]
[Result "1-0"]
[WhiteElo "2874"]
[BlackElo "2673"]
[TimeControl "180+1"]
[EndTime "10:40:59 PDT"]
[Termination "TigrVShlyape won on time"]

1. d4 {[%clk 0:03:00.9]} 1... Nf6 {[%clk 0:02:59]} 2. Nf3 {[%clk 0:03:00.1]}
2... g6 {[%clk 0:02:56.8]} 3. Bg5 {[%clk 0:02:58]} 3... Bg7 {[%clk 0:02:53.1]}
4. Nbd2 {[%clk 0:02:58.4]} 4... d5 {[%clk 0:02:52.8]} 5. e3 {[%clk 0:02:58]}
5... O-O {[%clk 0:02:51.7]} 6. c3 {[%clk 0:02:57.8]} 6... Nbd7 {[%clk 0:02:43]}
7. Be2 {[%clk 0:02:57.9]} 7... Re8 {[%clk 0:02:43]} 8. O-O {[%clk 0:02:56.3]}
8... e5 {[%clk 0:02:42.9]} 9. b4 {[%clk 0:02:49.3]} 9... c6 {[%clk 0:02:14.5]}
10. a4 {[%clk 0:02:44.7]} 10... e4 {[%clk 0:02:07.1]} 11. Ne1 {[%clk 0:02:43.4]}
11... h6 {[%clk 0:02:07]} 12. Bh4 {[%clk 0:02:42.3]} 12... Nf8 {[%clk
0:02:07.7]} 13. h3 {[%clk 0:02:23.5]} 13... g5 {[%clk 0:02:00]} 14. Bg3 {[%clk
0:02:22.7]} 14... Ng6 {[%clk 0:02:00.4]} 15. Nc2 {[%clk 0:02:19.6]} 15... Bf5
{[%clk 0:01:48.9]} 16. b5 {[%clk 0:02:17.3]} 16... Kh7 {[%clk 0:01:33.6]} 17.
Nb4 {[%clk 0:02:15.1]} 17... Rc8 {[%clk 0:01:07.3]} 18. Nb3 {[%clk 0:02:14.7]}
18... Qe7 {[%clk 0:01:02.3]} 19. bxc6 {[%clk 0:02:02.5]} 19... bxc6 {[%clk
0:01:03.2]} 20. Nc5 {[%clk 0:01:57.8]} 20... Nd7 {[%clk 0:00:48.9]} 21. Nba6
{[%clk 0:01:56.9]} 21... Nf6 {[%clk 0:00:45.5]} 22. Rb1 {[%clk 0:01:56]} 22...
Rh8 {[%clk 0:00:11.4]} 23. Rb7 {[%clk 0:01:54.8]} 23... Qf8 {[%clk 0:00:11.9]}
24. f3 {[%clk 0:01:46.2]} 24... Re8 {[%clk 0:00:10.2]} 25. fxe4 {[%clk
0:01:45.1]} 25... Bxe4 {[%clk 0:00:10.1]} 26. Rxa7 {[%clk 0:01:37]} 26... Kg8
{[%clk 0:00:08.1]} 27. Nd7 {[%clk 0:01:31.4]} 27... Nxd7 {[%clk 0:00:07.2]} 28.
Rxd7 {[%clk 0:01:31.4]} 28... f5 {[%clk 0:00:08.1]} 29. Bh5 {[%clk 0:01:28.2]}
29... Re6 {[%clk 0:00:08.1]} 30. Nc5 {[%clk 0:01:27.3]} 30... Rf6 {[%clk
0:00:08.3]} 31. Nxe4 {[%clk 0:01:24]} 31... dxe4 {[%clk 0:00:08.6]} 32. Qb3+
{[%clk 0:01:19.4]} 32... Kh7 {[%clk 0:00:07.6]} 33. Be5 {[%clk 0:01:16.6]} 33...
Nh4 {[%clk 0:00:06.9]} 34. Bxf6 {[%clk 0:01:15.1]} 34... Qxf6 {[%clk 0:00:07.8]}
35. Qf7 {[%clk 0:01:12.7]} 35... Qxf7 {[%clk 0:00:08]} 36. Bxf7 {[%clk
0:01:11.5]} 36... Ra8 {[%clk 0:00:08.9]} 37. Be6 {[%clk 0:01:09.1]} 37... Kg6
{[%clk 0:00:07.8]} 38. Rd6 {[%clk 0:01:06.2]} 38... Bf6 {[%clk 0:00:04.9]} 39.
Rxc6 {[%clk 0:01:05.8]} 39... Rxa4 {[%clk 0:00:05]} 40. Rc5 {[%clk 0:01:06]}
40... f4 {[%clk 0:00:03.8]} 41. exf4 {[%clk 0:01:04.8]} 41... e3 {[%clk
0:00:04.4]} 42. f5+ {[%clk 0:01:01.6]} 42... Kg7 {[%clk 0:00:04.9]} 43. Rc7+
{[%clk 0:01:01.8]} 43... Kh8 {[%clk 0:00:05.3]} 44. Rf7 {[%clk 0:00:57.9]} 44...
e2 {[%clk 0:00:03.5]} 45. Re1 {[%clk 0:00:57.8]} 1-0

[Event "*** Titled Tuesday Blitz"]
[Site "Chess.com"]
[Date "2020.10.20"]
[Round "4"]
[White "KetiGrant"]
[Black "SchieberSpieler"]
[Result "1-0"]
[WhiteElo "2306"]
[BlackElo "2414"]
[TimeControl "180+1"]
[EndTime "10:41:05 PDT"]
[Termination "KetiGrant won by resignation"]

1. e4 {[%clk 0:03:00.9]} 1... e6 {[%clk 0:02:58.8]} 2. d4 {[%clk 0:03:00.4]}
2... d5 {[%clk 0:02:59.4]} 3. Nc3 {[%clk 0:03:00.4]} 3... Nf6 {[%clk 0:02:59.9]}
4. e5 {[%clk 0:02:59.9]} 4... Nfd7 {[%clk 0:03:00.3]} 5. f4 {[%clk 0:03:00.2]}
5... c5 {[%clk 0:03:00.9]} 6. Nf3 {[%clk 0:03:00.4]} 6... Nc6 {[%clk 0:03:01.5]}
7. Be3 {[%clk 0:03:00]} 7... cxd4 {[%clk 0:03:01.9]} 8. Nxd4 {[%clk 0:02:59.3]}
8... Bc5 {[%clk 0:03:02.5]} 9. Qd2 {[%clk 0:02:58.7]} 9... O-O {[%clk
0:03:02.1]} 10. O-O-O {[%clk 0:02:56.8]} 10... a6 {[%clk 0:03:02.6]} 11. h4
{[%clk 0:02:53.7]} 11... Nxd4 {[%clk 0:03:01.6]} 12. Bxd4 {[%clk 0:02:53.6]}
12... b5 {[%clk 0:03:02.3]} 13. h5 {[%clk 0:02:47.3]} 13... b4 {[%clk
0:03:01.6]} 14. Na4 {[%clk 0:02:46.1]} 14... Bxd4 {[%clk 0:03:00.5]} 15. Qxd4
{[%clk 0:02:47]} 15... Qa5 {[%clk 0:02:44.7]} 16. b3 {[%clk 0:02:45.9]} 16...
Bb7 {[%clk 0:02:45]} 17. Kb1 {[%clk 0:02:42]} 17... Bc6 {[%clk 0:02:45.1]} 18.
Nb2 {[%clk 0:02:41.4]} 18... Qc5 {[%clk 0:02:45.2]} 19. Qd2 {[%clk 0:02:24.5]}
19... a5 {[%clk 0:02:38]} 20. Nd3 {[%clk 0:02:15]} 20... Qd4 {[%clk 0:02:36.1]}
21. h6 {[%clk 0:01:53]} 21... g6 {[%clk 0:02:32.2]} 22. Qe1 {[%clk 0:01:49.9]}
22... Rab8 {[%clk 0:02:09.1]} 23. Rh4 {[%clk 0:01:43.5]} 23... Qb6 {[%clk
0:01:47.2]} 24. g4 {[%clk 0:01:31.5]} 24... Bb5 {[%clk 0:01:41.9]} 25. f5 {[%clk
0:01:29.5]} 25... Nc5 {[%clk 0:01:40]} 26. Nxc5 {[%clk 0:01:19.7]} 26... Qxc5
{[%clk 0:01:38.1]} 27. Bxb5 {[%clk 0:01:09.4]} 27... Rxb5 {[%clk 0:01:37.7]} 28.
Rh2 {[%clk 0:01:09.9]} 28... a4 {[%clk 0:01:29.7]} 29. Qh4 {[%clk 0:01:06.9]}
29... f6 {[%clk 0:01:13.4]} 30. fxg6 {[%clk 0:00:51.7]} 30... hxg6 {[%clk
0:01:03.5]} 31. h7+ {[%clk 0:00:50.5]} 31... Kh8 {[%clk 0:01:03.9]} 32. exf6
{[%clk 0:00:49.9]} 32... a3 {[%clk 0:00:58.8]} 33. Qh6 {[%clk 0:00:43.7]} 33...
Rb7 {[%clk 0:00:58.9]} 34. Rf1 {[%clk 0:00:30.6]} 34... Rff7 {[%clk 0:00:43.2]}
35. Qd2 {[%clk 0:00:25.7]} 35... e5 {[%clk 0:00:24.1]} 36. g5 {[%clk 0:00:24.7]}
36... Rxh7 {[%clk 0:00:19]} 37. Rxh7+ {[%clk 0:00:23.2]} 37... Rxh7 {[%clk
0:00:19.9]} 38. f7 {[%clk 0:00:23.2]} 38... Qf8 {[%clk 0:00:19.4]} 39. Qxd5
{[%clk 0:00:22.7]} 1-0

[Event "*** Titled Tuesday Blitz"]
[Site "Chess.com"]
[Date "2020.10.20"]
[Round "4"]
[White "DanielDardha2005"]
[Black "alexwinter25"]
[Result "1-0"]
[WhiteElo "2625"]
[BlackElo "2365"]
[TimeControl "180+1"]
[EndTime "10:41:06 PDT"]
[Termination "DanielDardha2005 won by checkmate"]

1. d4 {[%clk 0:03:00.9]} 1... Nf6 {[%clk 0:02:59.3]} 2. c4 {[%clk 0:02:55.6]}
2... e6 {[%clk 0:02:59.3]} 3. Nc3 {[%clk 0:02:55.9]} 3... d5 {[%clk 0:02:59.5]}
4. cxd5 {[%clk 0:02:54.6]} 4... exd5 {[%clk 0:02:59.5]} 5. Bg5 {[%clk
0:02:54.3]} 5... Nbd7 {[%clk 0:02:59.7]} 6. Qc2 {[%clk 0:02:53.4]} 6... c6
{[%clk 0:03:00]} 7. e3 {[%clk 0:02:52.9]} 7... h6 {[%clk 0:02:59]} 8. Bh4 {[%clk
0:02:50.7]} 8... Be7 {[%clk 0:02:59]} 9. Nf3 {[%clk 0:02:50.2]} 9... Nh5 {[%clk
0:02:37.2]} 10. Bxe7 {[%clk 0:02:48.8]} 10... Qxe7 {[%clk 0:02:38.1]} 11. O-O-O
{[%clk 0:02:45.7]} 11... O-O {[%clk 0:02:09.5]} 12. g4 {[%clk 0:02:39.9]} 12...
Nhf6 {[%clk 0:02:06.2]} 13. g5 {[%clk 0:02:40]} 13... hxg5 {[%clk 0:01:52.6]}
14. Nxg5 {[%clk 0:02:40.9]} 14... Re8 {[%clk 0:01:46.8]} 15. Bd3 {[%clk
0:02:34.5]} 15... Nf8 {[%clk 0:01:46.5]} 16. Rdg1 {[%clk 0:02:32.6]} 16... b5
{[%clk 0:01:30.4]} 17. h4 {[%clk 0:02:29.3]} 17... b4 {[%clk 0:01:29.7]} 18. Na4
{[%clk 0:02:24.8]} 18... Ne4 {[%clk 0:01:06.8]} 19. Bxe4 {[%clk 0:02:05.5]}
19... dxe4 {[%clk 0:01:07.7]} 20. Nc5 {[%clk 0:02:05.5]} 20... Bf5 {[%clk
0:01:04.9]} 21. f3 {[%clk 0:01:59.8]} 21... Ne6 {[%clk 0:00:58.2]} 22. Ngxe6
{[%clk 0:01:42.5]} 22... Bxe6 {[%clk 0:00:54.1]} 23. fxe4 {[%clk 0:01:40.9]}
23... Qf6 {[%clk 0:00:41.9]} 24. Kb1 {[%clk 0:01:32.6]} 24... a5 {[%clk
0:00:41.2]} 25. Rf1 {[%clk 0:01:22]} 25... Qh6 {[%clk 0:00:40.8]} 26. Qf2 {[%clk
0:01:17]} 26... Bc4 {[%clk 0:00:35.1]} 27. Rc1 {[%clk 0:01:11.8]} 27... Be6
{[%clk 0:00:29.6]} 28. Qf4 {[%clk 0:01:10.4]} 28... a4 {[%clk 0:00:21.7]} 29.
Qxh6 {[%clk 0:00:59.5]} 29... gxh6 {[%clk 0:00:22.6]} 30. Rcf1 {[%clk
0:00:52.9]} 30... a3 {[%clk 0:00:19.7]} 31. b3 {[%clk 0:00:52.2]} 31... Kh7
{[%clk 0:00:13.5]} 32. Rf6 {[%clk 0:00:45.8]} 32... Kg7 {[%clk 0:00:09.3]} 33.
e5 {[%clk 0:00:42.5]} 33... Bg4 {[%clk 0:00:05.6]} 34. h5 {[%clk 0:00:32.4]}
34... Rad8 {[%clk 0:00:03.8]} 35. Rg1 {[%clk 0:00:31]} 35... Kf8 {[%clk
0:00:02.5]} 36. Rxg4 {[%clk 0:00:30.2]} 36... Ke7 {[%clk 0:00:03.4]} 37. Rg7
{[%clk 0:00:28.4]} 37... Rf8 {[%clk 0:00:03.4]} 38. Re6# {[%clk 0:00:28.7]} 1-0

[Event "*** Titled Tuesday Blitz"]
[Site "Chess.com"]
[Date "2020.10.20"]
[Round "4"]
[White "onetowin"]
[Black "lucachess49"]
[Result "0-1"]
[WhiteElo "2109"]
[BlackElo "2380"]
[TimeControl "180+1"]
[EndTime "10:41:06 PDT"]
[Termination "lucachess49 won by resignation"]

1. d4 {[%clk 0:02:54.2]} 1... Nf6 {[%clk 0:02:59.5]} 2. Nf3 {[%clk 0:02:50.9]}
2... e6 {[%clk 0:02:59.8]} 3. g3 {[%clk 0:02:46.5]} 3... b6 {[%clk 0:02:59.3]}
4. Bg2 {[%clk 0:02:46.9]} 4... Bb7 {[%clk 0:02:59.7]} 5. O-O {[%clk 0:02:45.6]}
5... d6 {[%clk 0:03:00.1]} 6. c4 {[%clk 0:02:43.7]} 6... Nbd7 {[%clk 0:03:00.6]}
7. Nc3 {[%clk 0:02:42.9]} 7... g6 {[%clk 0:03:01]} 8. Qc2 {[%clk 0:02:39.4]}
8... Bg7 {[%clk 0:03:01.4]} 9. e4 {[%clk 0:02:39.2]} 9... O-O {[%clk 0:03:01.8]}
10. h3 {[%clk 0:02:37.8]} 10... Qe7 {[%clk 0:02:51.4]} 11. Be3 {[%clk
0:02:37.6]} 11... e5 {[%clk 0:02:47.4]} 12. Rfe1 {[%clk 0:02:36.2]} 12... Rfe8
{[%clk 0:02:47.1]} 13. Rad1 {[%clk 0:02:33.8]} 13... exd4 {[%clk 0:02:30]} 14.
Nxd4 {[%clk 0:02:34.7]} 14... Nxe4 {[%clk 0:02:08]} 15. Bc1 {[%clk 0:02:02.5]}
15... f5 {[%clk 0:01:53]} 16. f3 {[%clk 0:01:56.1]} 16... Bxd4+ {[%clk
0:01:44.7]} 17. Rxd4 {[%clk 0:01:53.1]} 17... Qf6 {[%clk 0:01:44.8]} 18. Rdxe4
{[%clk 0:00:59.5]} 18... fxe4 {[%clk 0:01:40.9]} 19. fxe4 {[%clk 0:00:58.6]}
19... Nc5 {[%clk 0:01:36.4]} 20. b4 {[%clk 0:00:51.2]} 20... Ne6 {[%clk
0:01:34.6]} 21. e5 {[%clk 0:00:49.9]} 21... Nd4 {[%clk 0:01:13.3]} 22. Nd5
{[%clk 0:00:19.9]} 22... Bxd5 {[%clk 0:00:58.5]} 23. Bxd5+ {[%clk 0:00:18.5]}
23... Kh8 {[%clk 0:00:58.2]} 24. exf6 {[%clk 0:00:18.3]} 24... Rxe1+ {[%clk
0:00:57.1]} 25. Kf2 {[%clk 0:00:18.3]} 25... Nxc2 {[%clk 0:00:57.6]} 26. Bh6
{[%clk 0:00:17.6]} 26... Rg8 {[%clk 0:00:49.7]} 27. f7 {[%clk 0:00:16.9]} 27...
Rb8 {[%clk 0:00:26.4]} 28. Bd2 {[%clk 0:00:15]} 28... Re5 {[%clk 0:00:15.4]} 29.
Bc3 {[%clk 0:00:14.7]} 29... Kg7 {[%clk 0:00:14.5]} 30. Bxe5+ {[%clk 0:00:12]}
30... dxe5 {[%clk 0:00:15.4]} 31. Ke2 {[%clk 0:00:11.7]} 31... Nd4+ {[%clk
0:00:15.2]} 32. Kd3 {[%clk 0:00:12]} 32... c6 {[%clk 0:00:15.4]} 33. Ke4 {[%clk
0:00:12.8]} 33... cxd5+ {[%clk 0:00:14.8]} 34. Kxd5 {[%clk 0:00:13.7]} 34...
Kxf7 {[%clk 0:00:14.6]} 35. c5 {[%clk 0:00:14.2]} 35... Rd8+ {[%clk 0:00:14.4]}
0-1

[Event "*** Titled Tuesday Blitz"]
[Site "Chess.com"]
[Date "2020.10.20"]
[Round "4"]
[White "ChronicUnhappiness"]
[Black "anon481216"]
[Result "1-0"]
[WhiteElo "2294"]
[BlackElo "2411"]
[TimeControl "180+1"]
[EndTime "10:41:07 PDT"]
[Termination "ChronicUnhappiness won by resignation"]

1. c4 {[%clk 0:03:00.9]} 1... e6 {[%clk 0:02:58.4]} 2. d4 {[%clk 0:03:00]} 2...
d5 {[%clk 0:02:58]} 3. Nc3 {[%clk 0:03:00.2]} 3... c6 {[%clk 0:02:58.1]} 4. e3
{[%clk 0:02:59]} 4... Nf6 {[%clk 0:02:57.3]} 5. Nf3 {[%clk 0:02:58.4]} 5... Nbd7
{[%clk 0:02:57.1]} 6. b3 {[%clk 0:02:55.5]} 6... Bd6 {[%clk 0:02:56.1]} 7. Bb2
{[%clk 0:02:53.6]} 7... O-O {[%clk 0:02:56]} 8. Bd3 {[%clk 0:02:46.2]} 8... b6
{[%clk 0:02:56.1]} 9. O-O {[%clk 0:02:45.3]} 9... Bb7 {[%clk 0:02:56]} 10. e4
{[%clk 0:02:45.2]} 10... dxe4 {[%clk 0:02:53.7]} 11. Nxe4 {[%clk 0:02:46.1]}
11... Nxe4 {[%clk 0:02:49.6]} 12. Bxe4 {[%clk 0:02:47]} 12... Nf6 {[%clk
0:02:44.9]} 13. Bc2 {[%clk 0:02:44.9]} 13... c5 {[%clk 0:02:45.1]} 14. Ne5
{[%clk 0:02:21.2]} 14... Qc7 {[%clk 0:02:36]} 15. Re1 {[%clk 0:02:18.9]} 15...
Rad8 {[%clk 0:02:31.3]} 16. Qd3 {[%clk 0:01:59.5]} 16... Bxe5 {[%clk 0:02:19.9]}
17. Rxe5 {[%clk 0:01:53.4]} 17... Qxe5 {[%clk 0:01:50.4]} 18. dxe5 {[%clk
0:01:52.6]} 18... Rxd3 {[%clk 0:01:50.3]} 19. Bxd3 {[%clk 0:01:53.5]} 19... Ne4
{[%clk 0:01:22.7]} 20. f3 {[%clk 0:01:45.1]} 20... Ng5 {[%clk 0:01:02.5]} 21. h4
{[%clk 0:01:42.4]} 21... Nxf3+ {[%clk 0:00:57.1]} 22. gxf3 {[%clk 0:01:42.1]}
22... Bxf3 {[%clk 0:00:57.3]} 23. Kf2 {[%clk 0:01:42.2]} 23... Bc6 {[%clk
0:00:56.6]} 24. Be2 {[%clk 0:01:36.9]} 24... Rd8 {[%clk 0:00:48.3]} 25. Rd1
{[%clk 0:01:35.7]} 25... Rxd1 {[%clk 0:00:48.3]} 26. Bxd1 {[%clk 0:01:36.6]}
26... Be4 {[%clk 0:00:48.6]} 27. Ke3 {[%clk 0:01:28.6]} 27... Bb1 {[%clk
0:00:47.8]} 28. a3 {[%clk 0:01:28.1]} 28... Kf8 {[%clk 0:00:47.9]} 29. b4 {[%clk
0:01:26.5]} 29... cxb4 {[%clk 0:00:45.9]} 30. axb4 {[%clk 0:01:25.9]} 30... Ke7
{[%clk 0:00:45.9]} 31. Bd4 {[%clk 0:01:21.3]} 31... Kd7 {[%clk 0:00:44]} 32.
Ba4+ {[%clk 0:01:20.3]} 32... Kd8 {[%clk 0:00:42.8]} 33. c5 {[%clk 0:01:20.1]}
33... bxc5 {[%clk 0:00:39.9]} 34. bxc5 {[%clk 0:01:18.5]} 34... a6 {[%clk
0:00:38.3]} 35. Bc3 {[%clk 0:01:17.3]} 35... Ba2 {[%clk 0:00:36.3]} 36. Ba5+
{[%clk 0:01:16.7]} 36... Kc8 {[%clk 0:00:35.2]} 37. c6 {[%clk 0:01:13.4]} 37...
Bd5 {[%clk 0:00:34.6]} 38. c7 {[%clk 0:01:12.8]} 38... f5 {[%clk 0:00:34]} 39.
exf6 {[%clk 0:01:03.5]} 39... gxf6 {[%clk 0:00:34]} 40. Bc2 {[%clk 0:01:02.5]}
40... h6 {[%clk 0:00:32.8]} 41. Bd3 {[%clk 0:01:00.1]} 41... Bb7 {[%clk
0:00:28.1]} 42. Be4 {[%clk 0:00:54.5]} 42... Bxe4 {[%clk 0:00:22.4]} 43. Kxe4
{[%clk 0:00:54.3]} 43... Kd7 {[%clk 0:00:22.7]} 44. h5 {[%clk 0:00:49.6]} 44...
Kc8 {[%clk 0:00:20.5]} 45. Kd4 {[%clk 0:00:49.7]} 45... Kb7 {[%clk 0:00:18]} 46.
Kc5 {[%clk 0:00:49.8]} 46... e5 {[%clk 0:00:15.8]} 47. Kd6 {[%clk 0:00:45.1]}
47... Kc8 {[%clk 0:00:13.6]} 48. Ke6 {[%clk 0:00:43.3]} 1-0

[Event "*** Titled Tuesday Blitz"]
[Site "Chess.com"]
[Date "2020.10.20"]
[Round "4"]
[White "Astaneh"]
[Black "LittlePeasant"]
[Result "0-1"]
[WhiteElo "2509"]
[BlackElo "2804"]
[TimeControl "180+1"]
[EndTime "10:41:08 PDT"]
[Termination "LittlePeasant won by resignation"]

1. d4 {[%clk 0:01:57.7]} 1... Nf6 {[%clk 0:02:59]} 2. Nf3 {[%clk 0:01:51.2]}
2... d5 {[%clk 0:02:58.3]} 3. c4 {[%clk 0:01:51.2]} 3... e6 {[%clk 0:02:58.8]}
4. Nc3 {[%clk 0:01:51.5]} 4... dxc4 {[%clk 0:02:59.1]} 5. e4 {[%clk 0:01:50.9]}
5... b5 {[%clk 0:02:59.4]} 6. e5 {[%clk 0:01:48.8]} 6... Nd5 {[%clk 0:02:59.7]}
7. Nxb5 {[%clk 0:01:48.3]} 7... Nb6 {[%clk 0:03:00.2]} 8. Be2 {[%clk 0:01:43.1]}
8... Nc6 {[%clk 0:03:00.3]} 9. O-O {[%clk 0:01:42.5]} 9... Be7 {[%clk
0:02:50.7]} 10. Be3 {[%clk 0:01:42.3]} 10... Qd7 {[%clk 0:02:49]} 11. Nc3 {[%clk
0:01:24.3]} 11... Rb8 {[%clk 0:02:39.7]} 12. Rc1 {[%clk 0:01:17.1]} 12... Ba6
{[%clk 0:02:38.9]} 13. Qd2 {[%clk 0:01:10]} 13... O-O {[%clk 0:02:23.9]} 14.
Rfd1 {[%clk 0:01:08]} 14... Nb4 {[%clk 0:02:06.5]} 15. Bg5 {[%clk 0:00:44.4]}
15... Rfd8 {[%clk 0:01:59.6]} 16. a3 {[%clk 0:00:41.4]} 16... Nd3 {[%clk
0:01:56.8]} 17. Bxd3 {[%clk 0:00:39.6]} 17... cxd3 {[%clk 0:01:57.7]} 18. Ne4
{[%clk 0:00:36.4]} 18... Bb5 {[%clk 0:01:04.5]} 19. Nf6+ {[%clk 0:00:33.3]}
19... gxf6 {[%clk 0:00:49.3]} 20. Bxf6 {[%clk 0:00:32.2]} 20... Bxf6 {[%clk
0:00:22.7]} 21. exf6 {[%clk 0:00:32.3]} 21... Kh8 {[%clk 0:00:23.6]} 22. Ne5
{[%clk 0:00:19.6]} 22... Qe8 {[%clk 0:00:24]} 23. Rxc7 {[%clk 0:00:19]} 23...
Nd7 {[%clk 0:00:24.4]} 24. Qh6 {[%clk 0:00:07.4]} 24... Qg8 {[%clk 0:00:24.8]}
25. Nxd3 {[%clk 0:00:05]} 25... Qg6 {[%clk 0:00:20.1]} 26. Qxg6 {[%clk
0:00:05.2]} 26... hxg6 {[%clk 0:00:21]} 27. h3 {[%clk 0:00:04.5]} 27... Kg8
{[%clk 0:00:19.6]} 28. b4 {[%clk 0:00:02.5]} 28... a6 {[%clk 0:00:19.4]} 29. Nc5
{[%clk 0:00:02.7]} 29... Nxf6 {[%clk 0:00:19.9]} 30. Nb7 {[%clk 0:00:02.5]}
30... Rd7 {[%clk 0:00:18.8]} 31. Rxd7 {[%clk 0:00:03.1]} 31... Nxd7 {[%clk
0:00:19.6]} 32. Nc5 {[%clk 0:00:04]} 32... Nb6 {[%clk 0:00:19.9]} 33. Rc1 {[%clk
0:00:04.2]} 33... Rd8 {[%clk 0:00:20.2]} 34. a4 {[%clk 0:00:03.6]} 34... Nxa4
{[%clk 0:00:20.3]} 35. Nxa4 {[%clk 0:00:03.9]} 35... Bxa4 {[%clk 0:00:21.2]} 36.
Rc4 {[%clk 0:00:04.2]} 36... Bb5 {[%clk 0:00:21.6]} 0-1